bitfinex/quotes_SOLUSD_20250216
["timestamp","ask_amount","ask_price","bid_price","bid_amount"]
[1739732966167,0.063,188.94,188.92,9.69118736]
[1739732966949,0.063,188.94,188.93,9.69118736]
[1739732969156,0.063,188.94,188.93,28.39593589]
[1739732974064,0.063,188.94,188.93,28.39593589]
[1739732977459,0.063,188.94,188.93,34.97003589]
[1739732977657,0.063,188.99,188.97,20.0]
[1739732977858,0.063,188.99,188.98,9.69118736]
[1739732983948,0.063,188.99,188.97,34.98298736]
[1739732984769,0.063,188.99,188.96,9.69118736]
[1739732985445,0.063,188.99,188.97,9.69118736]
[1739732986764,0.063,188.99,188.98,29.18820078]
[1739732991971,0.063,188.99,188.98,28.39453589]
[1739732992474,0.063,188.99,188.98,23.10303589]
[1739732995163,0.063,188.99,188.98,28.39453589]
[1739732998490,0.063,188.99,188.98,74.25568533]
[1739732999383,0.063,188.99,188.98,34.49093589]
[1739733000875,0.063,188.99,188.98,23.10303589]
[1739733001477,0.063,188.99,188.98,9.69118736]
[1739733001680,0.063,188.99,188.94,9.72118736]
[1739733002265,9.75418736,188.99,188.94,0.03]
[1739733002465,6.08452452,188.98,188.94,0.03]
[1739733002667,0.063,188.99,188.95,9.69118736]
[1739733002872,0.063,188.99,188.97,9.69118736]
[1739733003274,0.063,188.99,188.98,9.69118736]
[1739733003785,0.063,188.99,188.98,23.89656045]
[1739733003967,0.063,189.04,189.01,20.0]
[1739733004165,0.063,189.04,189.03,9.69118736]
[1739733005568,0.063,189.04,189.03,23.10303589]
[1739733007364,0.063,189.04,189.02,9.69118736]
[1739733007580,0.063,189.04,189.01,9.69118736]
[1739733007775,0.85602452,189.04,188.98,9.69118736]
[1739733007976,9.69118736,189.02,188.96,9.69118736]
[1739733008289,0.79302452,189.01,188.96,9.69118736]
[1739733008692,0.79302452,189.01,188.95,9.69118736]
[1739733008995,14.98218736,189.0,188.94,0.03]
[1739733009192,0.79302452,188.99,188.94,0.03]
[1739733009692,10.48421188,188.99,188.94,0.03]
[1739733010094,5.2915,188.98,188.94,0.03]
[1739733010282,0.79302452,188.97,188.94,0.03]
[1739733011582,87.5915,188.98,188.94,0.03]
[1739733011784,88.38452452,188.98,188.94,0.03]
[1739733013200,82.3,188.98,188.94,15.15904024]
[1739733013404,82.3,188.98,188.96,15.12904024]
[1739733014482,82.3,188.98,188.97,15.12904024]
[1739733014693,1.5399,189.03,188.98,13.41184853]
[1739733014991,1.5399,189.03,189.01,15.12904024]
[1739733015195,1.5399,189.03,188.99,15.12904024]
[1739733015403,6.8301,189.03,188.98,15.12904024]
[1739733015697,6.8301,189.03,188.97,15.12904024]
[1739733016805,6.8301,189.03,188.98,15.12904024]
[1739733018704,6.8301,189.03,188.97,15.12904024]
[1739733018912,21.95914024,189.03,188.96,15.12904024]
[1739733019084,21.95914024,189.03,188.95,15.12904024]
[1739733019085,98.22206476,189.02,188.95,15.12904024]
[1739733020202,5.2907,189.01,188.95,15.12904024]
[1739733020505,0.79302452,189.0,188.95,15.12904024]
[1739733021105,5.2907,189.01,188.95,15.12904024]
[1739733021402,0.79302452,189.0,188.95,15.12904024]
[1739733022205,0.79302452,189.0,188.94,15.15904024]
[1739733022376,82.3,188.99,188.94,0.03]
[1739733022582,82.3,188.99,188.94,15.15904024]
[1739733023718,87.5913,188.99,188.94,15.15904024]
[1739733023890,0.79302452,188.98,188.94,0.03]
[1739733024206,102.72034024,188.99,188.94,0.03]
[1739733024207,87.5913,188.99,188.94,0.03]
[1739733024389,82.3,188.99,188.94,15.15904024]
[1739733024786,82.3,188.99,188.95,15.12904024]
[1739733024985,82.3,188.99,188.98,15.12904024]
[1739733025593,82.3,188.99,188.96,28.54088877]
[1739733025789,82.3,188.99,188.95,5.2924]
[1739733025790,82.3,188.99,188.95,15.12904024]
[1739733026707,87.5913,188.99,188.94,15.15904024]
[1739733026891,82.3,188.98,188.94,15.15904024]
[1739733027504,82.3,188.98,188.94,0.03]
[1739733028502,82.3,188.98,188.94,15.15904024]
[1739733029011,82.3,188.97,188.94,15.15904024]
[1739733030010,87.5919,188.97,188.94,0.03]
[1739733030187,88.38492452,188.97,188.94,0.03]
[1739733031406,82.3,188.97,188.94,0.03]
[1739733031710,82.3,188.97,188.94,9.7118591]
[1739733033122,82.3,188.97,188.95,9.6818591]
[1739733033589,82.3,188.97,188.94,9.7118591]
[1739733034007,82.3,188.97,188.95,0.03]
[1739733034900,82.3,188.96,188.95,0.03]
[1739733041219,10.47488362,188.96,188.95,0.03]
[1739733041405,11.99898362,188.96,188.95,0.03]
[1739733043723,16.4980591,188.96,188.95,0.03]
[1739733043895,16.4980591,188.96,188.94,0.03]
[1739733044212,10.47488362,188.95,188.94,0.03]
[1739733045604,15.76728362,188.95,188.94,0.03]
[1739733057520,6.08542452,188.95,188.94,0.03]
[1739733057838,5.2924,188.95,188.94,0.03]
[1739733060748,14.9742591,188.95,188.94,0.03]
[1739733061911,15.0372591,188.95,188.94,0.03]
[1739733063144,5.3554,188.95,188.94,0.03]
[1739733063442,0.063,188.95,188.94,0.03]
[1739733063642,0.063,188.95,188.94,9.7118591]
[1739733065031,0.063,188.95,188.94,23.12370763]
[1739733065235,0.063,188.95,188.94,28.41630763]
[1739733065619,0.063,188.95,188.94,29.2099668]
[1739733065943,0.063,188.95,188.94,31.7502668]
[1739733066143,0.063,188.95,188.94,16.79811827]
[1739733066346,0.063,188.95,188.94,0.0001]
[1739733066645,22.17677439,188.95,188.94,0.0001]
[1739733066872,20.063,188.95,188.94,0.0001]
[1739733067246,29.7448591,188.95,188.94,0.0001]
[1739733067444,15.0372591,188.95,188.94,0.0001]
[1739733068566,15.83028362,188.95,188.94,0.0001]
[1739733070068,5.3554,188.95,188.94,0.0001]
[1739733072966,0.063,188.95,188.94,0.0001]
[1739733073145,0.063,188.95,188.94,15.13298416]
[1739733074064,0.063,188.95,188.94,0.0001]
[1739733074254,1.0,188.9,188.87,0.0001]
[1739733074446,15.13288416,188.88,188.87,0.0001]
[1739733074651,15.13288416,188.88,188.76,6.2432]
[1739733074842,15.13288416,188.82,188.76,6.2432]
[1739733075039,0.99318859,188.81,188.76,6.2432]
[1739733076159,5.2966,188.8,188.76,6.2432]
[1739733077967,0.99324882,188.79,188.76,6.2432]
[1739733079364,21.42293298,188.79,188.76,0.03]
[1739733084250,0.99324882,188.79,188.76,0.03]
[1739733084446,6.29004882,188.79,188.76,0.03]
[1739733084864,2.0,188.73,188.66,0.12]
[1739733085059,15.13288416,188.67,188.66,0.12]
[1739733085461,20.43308416,188.67,188.66,0.12]
[1739733085680,21.4273632,188.67,188.66,0.12]
[1739733085972,34.6779632,188.67,188.56,21.27238416]
[1739733086173,15.13288416,188.62,188.52,105.12171331]
[1739733086373,1.5532,188.64,188.49,8.29561251]
[1739733086374,15.13288416,188.56,188.49,8.29561251]
[1739733086672,15.13288416,188.57,188.5,15.13288416]
[1739733086975,16.12739198,188.56,188.49,8.29561251]
[1739733087371,16.12739198,188.56,188.49,23.42849667]
[1739733088175,0.99450782,188.56,188.5,15.13288416]
[1739733088861,0.99450782,188.56,188.49,23.42849667]
[1739733088862,16.12739198,188.56,188.49,23.42849667]
[1739733089178,0.99450782,188.56,188.51,15.13288416]
[1739733089352,0.99450208,188.57,188.52,15.13288416]
[1739733089556,0.99450208,188.57,188.51,15.13288416]
[1739733090379,82.3,188.6,188.54,15.13288416]
[1739733090380,0.99450011,188.59,188.54,15.13288416]
[1739733090674,16.12721996,188.63,188.56,15.13288416]
[1739733091175,16.12721996,188.63,188.57,15.13288416]
[1739733091478,16.12721996,188.63,188.56,15.13288416]
[1739733092468,0.99421812,188.64,188.59,15.13288416]
[1739733093873,0.99421812,188.64,188.58,21.70188416]
[1739733094263,82.3,188.63,188.58,21.70188416]
[1739733094464,82.3,188.63,188.59,15.13288416]
[1739733094866,20.0,188.6,188.53,0.40151937]
[1739733095058,15.13288416,188.54,188.47,0.03]
[1739733095262,15.13288416,188.51,188.47,0.03]
[1739733095473,1.0,188.57,188.47,0.03]
[1739733095474,15.13288416,188.55,188.47,15.16288416]
[1739733095664,0.99473575,188.54,188.47,15.16288416]
[1739733096374,15.13288416,188.53,188.47,0.03]
[1739733096574,0.99481486,188.52,188.47,0.03]
[1739733097483,15.13288416,188.51,188.47,0.03]
[1739733097660,0.99494675,188.5,188.47,0.03]
[1739733098181,16.12783091,188.5,188.47,0.03]
[1739733098573,0.99494675,188.5,188.47,0.03]
[1739733099985,0.99492798,188.49,188.47,0.03]
[1739733101464,82.3,188.5,188.47,24.35938023]
[1739733102586,82.3,188.5,188.47,0.03]
[1739733103387,82.3,188.5,188.47,5.3358]
[1739733105972,82.3,188.5,188.47,0.03]
[1739733106699,21.0,188.48,188.36,24.32938023]
[1739733106868,1.0,188.5,188.29,24.32938023]
[1739733106869,24.32938023,188.4,188.29,24.32938023]
[1739733107067,24.32938023,188.4,188.28,0.03]
[1739733107068,24.32938023,188.35,188.28,0.03]
[1739733107393,25.32519984,188.34,188.28,0.03]
[1739733107696,14.41184853,188.33,188.28,0.03]
[1739733107868,21.0,188.31,188.28,0.03]
[1739733108072,0.99625405,188.3,188.28,0.03]
[1739733108691,24.32938023,188.29,188.28,0.03]
[1739733109277,29.64028023,188.29,188.28,0.03]
[1739733109682,24.32938023,188.29,188.28,0.03]
[1739733109883,25.32539024,188.34,188.28,0.03]
[1739733110086,0.99601001,188.34,188.28,24.35938023]
[1739733110395,25.32539024,188.34,188.28,0.03]
[1739733112102,24.32938023,188.3,188.28,0.03]
[1739733112403,0.99609165,188.29,188.28,0.03]
[1739733113197,6.30648604,188.31,188.28,0.03]
[1739733113380,6.30648604,188.31,188.23,24.32938023]
[1739733114397,30.63586627,188.31,188.24,24.32938023]
[1739733114776,25.32536627,188.31,188.24,24.32938023]
[1739733115001,0.99598604,188.31,188.24,24.32938023]
[1739733115306,25.32536627,188.31,188.24,24.32938023]
[1739733115529,0.99598604,188.31,188.27,24.32938023]
[1739733115685,0.99598218,188.35,188.3,24.32938023]
[1739733115884,0.99598218,188.35,188.3,24.29504835]
[1739733116180,0.99571665,188.37,188.31,24.32938023]
[1739733116380,0.99560879,188.38,188.34,24.32938023]
[1739733116980,0.99560879,188.38,188.33,29.63908023]
[1739733117400,0.99546099,188.4,188.33,29.63908023]
[1739733118285,25.32484122,188.4,188.33,29.63908023]
[1739733118497,0.99546099,188.4,188.33,29.63908023]
[1739733119488,0.99546099,188.4,188.36,24.32938023]
[1739733119694,0.99534396,188.42,188.37,24.32938023]
[1739733120202,0.99534396,188.42,188.38,24.32938023]
[1739733120523,0.99524909,188.44,188.39,24.32938023]
[1739733120711,0.99512451,188.46,188.39,24.32938023]
[1739733120885,25.32450474,188.46,188.39,24.32938023]
[1739733121209,25.32450474,188.46,188.4,24.32938023]
[1739733121210,0.99512451,188.46,188.4,24.32938023]
[1739733121412,0.063,188.47,188.43,24.32938023]
[1739733121582,14.9378422,188.51,188.44,24.32938023]
[1739733121785,0.59185489,188.5,188.44,24.32938023]
[1739733122079,24.92123512,188.5,188.43,29.63608023]
[1739733122884,24.32938023,188.48,188.42,5.3072]
[1739733123089,0.59185489,188.47,188.42,5.3072]
[1739733124483,24.32938023,188.51,188.44,24.32938023]
[1739733124684,0.59185489,188.5,188.45,24.32938023]
[1739733125088,0.59185489,188.5,188.46,24.32938023]
[1739733125290,0.59185489,188.5,188.45,24.32938023]
[1739733125491,0.59185489,188.5,188.46,5.3061]
[1739733125700,0.59185489,188.51,188.46,5.3061]
[1739733125896,0.59185489,188.51,188.46,29.63548023]
[1739733126706,0.59185489,188.52,188.46,29.63548023]
[1739733127084,24.92123512,188.52,188.45,29.63578023]
[1739733127285,30.22573512,188.52,188.45,29.63578023]
[1739733127797,24.92123512,188.52,188.46,24.32938023]
[1739733127985,0.59185489,188.52,188.46,24.32938023]
[1739733128304,0.59185489,188.55,188.49,24.32938023]
[1739733128504,82.3,188.56,188.51,24.32938023]
[1739733128698,82.89185489,188.56,188.51,29.63408023]
[1739733128901,24.32938023,188.55,188.49,24.32938023]
[1739733129094,24.92123512,188.55,188.49,24.32938023]
[1739733129295,0.59185489,188.55,188.49,24.32938023]
[1739733129790,24.32938023,188.59,188.53,24.32938023]
[1739733130006,0.59185489,188.58,188.53,24.32938023]
[1739733130212,24.92123512,188.58,188.52,24.32938023]
[1739733130526,24.92123512,188.58,188.46,26.12504331]
[1739733130527,24.32938023,188.54,188.47,24.32938023]
[1739733130684,0.59185489,188.58,188.44,14.7741]
[1739733130685,5.3036,188.55,188.48,5.3056]
[1739733130892,0.59185489,188.54,188.48,29.63498023]
[1739733131493,24.32938023,188.55,188.48,29.63498023]
[1739733131907,0.59185489,188.54,188.48,29.63498023]
[1739733132385,24.92123512,188.56,188.49,24.32938023]
[1739733132590,0.59185489,188.56,188.51,24.32938023]
[1739733132991,0.59185489,188.56,188.5,29.63418023]
[1739733133186,1.0,188.63,188.5,29.63418023]
[1739733133187,106.62938023,188.63,188.55,24.32938023]
[1739733133394,24.32938023,188.6,188.53,30.85928023]
[1739733133593,24.32938023,188.57,188.53,6.5299]
[1739733133793,24.32938023,188.57,188.5,5.3048]
[1739733133794,0.59185489,188.56,188.5,5.3048]
[1739733134006,0.59185489,188.56,188.5,29.63418023]
[1739733134199,0.59185489,188.56,188.51,24.32938023]
[1739733134407,82.3,188.61,188.51,24.32938023]
[1739733134408,0.59185489,188.57,188.51,24.32938023]
[1739733134806,0.59185489,188.58,188.52,24.32938023]
[1739733135191,0.59185489,188.58,188.53,24.32938023]
[1739733135918,0.59185489,188.59,188.53,24.32938023]
[1739733136094,0.59185489,188.59,188.54,24.32938023]
[1739733136606,0.063,188.57,188.54,24.32938023]
[1739733136806,0.063,188.57,188.53,5.304]
[1739733136807,0.063,188.57,188.53,29.63338023]
[1739733137199,0.063,188.57,188.53,5.304]
[1739733137400,24.32938023,188.54,188.44,24.32938023]
[1739733137595,24.32938023,188.52,188.44,5.3067]
[1739733137814,0.59185489,188.51,188.44,29.63608023]
[1739733138027,0.59185489,188.51,188.45,24.32938023]
[1739733138515,0.59185489,188.51,188.46,24.32938023]
[1739733138714,0.59185489,188.52,188.46,24.32938023]
[1739733139100,24.92123512,188.52,188.45,29.63578023]
[1739733140209,30.22563512,188.52,188.45,5.3064]
[1739733140417,24.32938023,188.49,188.43,11.3343]
[1739733141196,24.32938023,188.5,188.43,35.66368023]
[1739733141401,29.63458023,188.5,188.43,35.66368023]
[1739733141809,5.3052,188.5,188.43,35.66368023]
[1739733142015,5.3052,188.5,188.44,24.32938023]
[1739733142319,29.63408023,188.51,188.44,24.32938023]
[1739733142526,24.32938023,188.52,188.45,24.32938023]
[1739733143130,24.92123512,188.52,188.45,24.32938023]
[1739733143831,24.32938023,188.52,188.45,24.32938023]
[1739733144040,24.92123512,188.51,188.44,24.32938023]
[1739733144833,24.92123512,188.51,188.43,35.66388023]
[1739733145330,30.22603512,188.51,188.43,35.66388023]
[1739733145540,5.89665489,188.51,188.44,24.32938023]
[1739733146827,5.89665489,188.51,188.44,29.63598023]
[1739733147431,30.22563512,188.52,188.45,24.32938023]
[1739733147636,0.59185489,188.53,188.47,24.32938023]
[1739733147842,82.89185489,188.54,188.47,24.32938023]
[1739733148316,107.22123512,188.54,188.47,24.32938023]
[1739733148515,106.62938023,188.54,188.47,24.32938023]
[1739733149114,111.93328023,188.54,188.47,29.63518023]
[1739733149631,106.62938023,188.54,188.47,29.63518023]
[1739733149833,111.93328023,188.54,188.47,29.63518023]
[1739733150133,82.3,188.54,188.48,24.32938023]
[1739733150506,0.063,188.51,188.48,24.32938023]
[1739733152033,0.063,188.51,188.5,24.32938023]
[1739733153062,0.063,188.51,188.5,20.0]
[1739733153437,0.063,188.51,188.5,44.32938023]
[1739733154844,0.063,188.51,188.5,20.49909118]
[1739733155031,0.063,188.51,188.5,33.91093971]
[1739733160048,0.063,188.51,188.49,35.19409118]
[1739733160230,0.063,188.51,188.5,20.0]
[1739733161235,0.063,188.51,188.5,35.19409118]
[1739733162030,0.063,188.51,188.5,53.91093971]
[1739733162754,0.063,188.51,188.5,53.94093971]
[1739733163248,0.063,188.51,188.5,20.03]
[1739733163936,0.063,188.51,188.5,25.335]
[1739733165232,0.063,188.51,188.5,0.03]
[1739733166529,0.063,188.51,188.5,5.335]
[1739733169448,0.063,188.51,188.5,28.63593971]
[1739733171454,0.063,188.51,188.5,33.94093971]
[1739733178946,0.063,188.51,188.5,20.52909118]
[1739733179145,0.063,188.51,188.5,0.03]
[1739733185370,0.063,188.51,188.5,15.22409118]
[1739733186462,0.063,188.51,188.5,20.52909118]
[1739733187666,0.063,188.51,188.5,33.94093971]
[1739733188960,0.063,188.51,188.5,20.02909118]
[1739733189166,0.063,188.51,188.48,15.19409118]
[1739733189546,0.063,188.51,188.48,20.0]
[1739733190356,0.063,188.51,188.48,40.49959118]
[1739733190663,0.063,188.51,188.49,15.19409118]
[1739733192356,0.063,188.51,188.48,40.49959118]
[1739733192763,0.063,188.51,188.49,15.19409118]
[1739733193565,0.063,188.51,188.48,40.49959118]
[1739733196254,0.063,188.51,188.5,15.19409118]
[1739733196445,0.063,188.51,188.5,28.60593971]
[1739733198252,0.063,188.51,188.5,33.91093971]
[1739733200580,0.063,188.51,188.5,28.44161515]
[1739733202556,0.063,188.51,188.5,9.72476662]
[1739733202766,0.063,188.51,188.48,29.72476662]
[1739733202967,0.063,188.51,188.48,20.0]
[1739733203170,0.063,188.51,188.5,9.72476662]
[1739733206679,0.063,188.51,188.5,15.02976662]
[1739733208484,0.063,188.51,188.5,28.44161515]
[1739733209287,0.063,188.51,188.5,28.47161515]
[1739733209866,0.063,188.51,188.5,23.16661515]
[1739733210761,0.063,188.51,188.5,9.75476662]
[1739733212577,0.063,188.51,188.5,15.05976662]
[1739733213289,0.063,188.51,188.5,9.75476662]
[1739733218075,0.063,188.51,188.5,28.47161515]
[1739733223104,0.063,188.51,188.5,9.75476662]
[1739733229779,0.063,188.51,188.5,15.05976662]
[1739733230887,0.063,188.51,188.5,9.75476662]
[1739733233778,0.063,188.51,188.5,15.05976662]
[1739733234405,0.063,188.51,188.5,9.75476662]
[1739733234904,0.063,188.51,188.5,15.05976662]
[1739733236207,0.063,188.51,188.5,28.47161515]
[1739733236384,0.063,188.51,188.5,0.03]
[1739733245136,0.063,188.51,188.5,18.74684853]
[1739733247103,0.063,188.51,188.5,28.47161515]
[1739733249810,0.063,188.51,188.5,9.75476662]
[1739733250830,0.063,188.51,188.5,0.03]
[1739733251540,0.063,188.51,188.5,9.75476662]
[1739733251724,0.063,188.51,188.5,15.05976662]
[1739733253039,0.063,188.51,188.5,9.75476662]
[1739733253807,0.063,188.51,188.5,15.05976662]
[1739733254631,0.063,188.51,188.5,28.47161515]
[1739733259031,0.063,188.51,188.5,15.05976662]
[1739733259235,0.063,188.51,188.5,9.75476662]
[1739733260949,0.063,188.51,188.5,0.03]
[1739733262048,0.063,188.51,188.5,9.75476662]
[1739733262648,0.063,188.51,188.5,0.03]
[1739733264980,1.5765,188.51,188.5,0.03]
[1739733266279,6.8812,188.51,188.5,0.03]
[1739733266851,7.47305489,188.51,188.5,0.03]
[1739733269672,2.16835489,188.51,188.5,0.03]
[1739733269850,1.5765,188.51,188.5,0.03]
[1739733271039,0.063,188.51,188.5,0.03]
[1739733271778,0.063,188.51,188.5,9.75476662]
[1739733274451,0.063,188.51,188.5,0.03]
[1739733276462,0.65485489,188.51,188.5,0.03]
[1739733276676,0.063,188.51,188.5,0.03]
[1739733277376,0.063,188.51,188.5,9.75476662]
[1739733282783,0.063,188.51,188.5,15.05976662]
[1739733283168,0.063,188.51,188.5,28.47161515]
[1739733285190,0.063,188.51,188.5,9.75476662]
[1739733285978,0.59185489,188.55,188.5,9.75476662]
[1739733286583,5.89545489,188.55,188.5,9.75476662]
[1739733287476,5.89545489,188.55,188.5,0.03]
[1739733289086,5.89545489,188.55,188.5,9.75476662]
[1739733293593,5.95845489,188.55,188.5,9.75476662]
[1739733296093,5.95845489,188.55,188.5,0.03]
[1739733296974,15.68322151,188.55,188.5,0.03]
[1739733297185,9.72476662,188.53,188.5,0.03]
[1739733297385,10.31662151,188.52,188.5,0.03]
[1739733297893,9.72476662,188.52,188.5,0.03]
[1739733298581,5.3044,188.52,188.5,0.03]
[1739733299574,82.3,188.54,188.5,0.03]
[1739733299776,87.6041,188.54,188.5,0.03]
[1739733301801,82.3,188.54,188.5,9.75476662]
[1739733302899,82.3,188.54,188.52,9.72476662]
[1739733303086,82.3,188.54,188.53,9.72476662]
[1739733303279,0.063,188.55,188.53,9.72476662]
[1739733303504,0.063,188.55,188.54,9.72476662]
[1739733305204,0.063,188.55,188.54,15.02866662]
[1739733306304,0.063,188.55,188.54,28.44051515]
[1739733306994,0.063,188.55,188.54,9.72476662]
[1739733308300,0.063,188.55,188.53,9.72476662]
[1739733308689,0.063,188.55,188.54,9.72476662]
[1739733309097,0.063,188.55,188.53,9.72476662]
[1739733309606,0.063,188.55,188.51,9.72476662]
[1739733309794,0.063,188.55,188.5,9.75476662]
[1739733312002,9.72476662,188.54,188.5,0.03]
[1739733312301,9.72476662,188.53,188.5,0.03]
[1739733312479,0.063,188.55,188.5,0.03]
[1739733312480,9.72476662,188.51,188.5,0.03]
[1739733314005,16.56386662,188.51,188.5,0.03]
[1739733314509,20.0,188.48,188.44,0.03]
[1739733314715,9.72476662,188.46,188.44,0.03]
[1739733315289,9.72476662,188.45,188.44,0.03]
[1739733316000,15.03116662,188.45,188.44,0.03]
[1739733316692,5.3064,188.45,188.44,0.03]
[1739733317010,97.33066662,188.47,188.44,0.03]
[1739733317203,87.6059,188.47,188.44,0.03]
[1739733317509,82.3,188.47,188.44,0.03]
[1739733317723,82.3,188.47,188.46,9.72476662]
[1739733318210,8.29037508,188.5,188.46,9.72476662]
[1739733318510,8.29037508,188.5,188.47,9.72476662]
[1739733319223,8.29037508,188.5,188.49,9.72476662]
[1739733320716,5.3044,188.52,188.47,9.72476662]
[1739733320897,15.02916662,188.52,188.45,9.72476662]
[1739733321533,9.72476662,188.51,188.44,9.75476662]
[1739733321700,9.72476662,188.48,188.44,0.03]
[1739733322398,5.3058,188.47,188.44,0.03]
[1739733323614,20.51830392,188.47,188.44,0.03]
[1739733323829,15.21250392,188.45,188.44,0.03]
[1739733324000,97.51250392,188.46,188.44,0.03]
[1739733324326,82.3,188.46,188.44,0.03]
[1739733324527,97.51250392,188.46,188.44,0.03]
[1739733324721,15.21250392,188.45,188.44,0.03]
[1739733325427,20.51890392,188.45,188.44,0.03]
[1739733325902,5.3064,188.45,188.44,0.03]
[1739733327200,87.6061,188.46,188.44,0.03]
[1739733327402,6.84,188.48,188.44,15.24250392]
[1739733327625,82.3,188.51,188.47,15.21250392]
[1739733327918,8.29037508,188.52,188.5,15.21250392]
[1739733328104,8.29037508,188.52,188.44,6.3473]
[1739733328432,8.29037508,188.52,188.44,7.14298705]
[1739733328594,8.29037508,188.52,188.51,15.21250392]
[1739733329302,0.063,188.54,188.51,15.21250392]
[1739733329518,0.063,188.54,188.53,15.21250392]
[1739733329729,0.063,188.54,188.51,15.21250392]
[1739733330141,0.063,188.54,188.47,18.71764853]
[1739733330142,0.063,188.54,188.53,15.21250392]
[1739733331246,0.063,188.54,188.52,15.21250392]
[1739733331928,0.063,188.54,188.53,15.21250392]
[1739733332648,0.063,188.54,188.51,15.21250392]
[1739733333140,0.063,188.54,188.5,15.21250392]
[1739733333823,0.063,188.54,188.51,15.21250392]
[1739733334152,0.063,188.54,188.52,15.21250392]
[1739733334461,0.063,188.54,188.51,15.21250392]
[1739733334964,0.063,188.54,188.52,15.21250392]
[1739733335451,0.063,188.54,188.51,15.21250392]
[1739733335660,0.063,188.54,188.5,15.21250392]
[1739733336029,0.063,188.54,188.47,13.41184853]
[1739733336030,0.063,188.54,188.51,15.21250392]
[1739733338557,82.3,188.53,188.52,15.21250392]
[1739733338852,97.51250392,188.53,188.45,15.21250392]
[1739733339525,5.3044,188.52,188.45,15.21250392]
[1739733340225,18.5655,188.52,188.46,15.21250392]
[1739733341328,5.3044,188.52,188.47,15.21250392]
[1739733342261,5.3674,188.52,188.49,15.21250392]
[1739733342853,0.063,188.52,188.51,15.21250392]
[1739733343850,0.063,188.52,188.5,15.21250392]
[1739733344849,0.063,188.52,188.51,15.21250392]
[1739733346431,0.063,188.52,188.51,33.92905245]
[1739733349551,0.063,188.52,188.51,33.92905245]
[1739733356156,0.063,188.52,188.51,41.09437342]
[1739733356450,0.063,188.52,188.51,40.29895245]
[1739733360749,0.063,188.52,188.51,34.80724194]
[1739733373553,0.063,188.52,188.51,35.80724194]
[1739733373962,0.063,188.52,188.51,34.80724194]
[1739733374346,0.063,188.52,188.51,35.80724194]
[1739733376070,0.063,188.55,188.54,13.41184853]
[1739733376251,0.063,188.55,188.54,62.8110605]
[1739733376968,0.063,188.55,188.54,23.92788686]
[1739733378247,0.063,188.55,188.54,29.23178686]
[1739733379565,0.063,188.55,188.54,68.1149605]
[1739733379954,0.063,188.55,188.54,29.23178686]
[1739733383262,0.063,188.55,188.54,68.1149605]
[1739733383874,0.063,188.55,188.54,29.23178686]
[1739733386462,0.063,188.55,188.54,68.1149605]
[1739733386675,0.063,188.55,188.54,29.23178686]
[1739733387574,0.063,188.55,188.54,9.72079341]
[1739733389663,0.063,188.55,188.54,29.23193095]
[1739733389976,0.063,188.55,188.54,28.43654194]
[1739733390184,0.063,188.55,188.54,23.13264194]
[1739733391074,0.063,188.55,188.54,9.72079341]
[1739733393475,0.063,188.55,188.54,9.75079341]
[1739733393677,0.063,188.55,188.54,15.05469341]
[1739733396667,0.063,188.55,188.54,28.46654194]
[1739733396975,0.063,188.55,188.54,23.16264194]
[1739733397778,0.063,188.55,188.54,9.75079341]
[1739733400179,0.063,188.55,188.54,15.05469341]
[1739733401780,0.063,188.55,188.54,9.75079341]
[1739733403958,83.45989475,188.62,188.55,9.72079341]
[1739733405084,5.3019,188.61,188.56,9.72079341]
[1739733405676,5.3019,188.61,188.57,9.72079341]
[1739733406386,79.10380134,188.62,188.58,9.72079341]
[1739733406882,79.10380134,188.62,188.57,9.72079341]
[1739733407071,79.10380134,188.62,188.56,9.72079341]
[1739733407788,79.10380134,188.62,188.57,9.72079341]
[1739733408879,79.10380134,188.62,188.58,9.72079341]